bitfinex/quotes_BTCUSD_20260127
["timestamp","ask_amount","ask_price","bid_price","bid_amount"]
[1769521880682,0.5600115,87969.0,87954.0,0.03479813]
[1769521880885,0.5600115,87969.0,87955.0,0.03479801]
[1769521881073,0.5600115,87969.0,87955.0,0.02342856]
[1769521882578,0.5600115,87969.0,87956.0,0.01136932]
[1769521882996,0.5600115,87969.0,87955.0,0.10445581]
[1769521883215,0.5600115,87969.0,87956.0,0.03471255]
[1769521883786,0.5600115,87969.0,87956.0,0.02334323]
[1769521888960,0.5600115,87969.0,87956.0,0.03471255]
[1769521889158,0.5600115,87969.0,87956.0,0.02334323]
[1769521889575,0.5600115,87969.0,87956.0,0.03471255]
[1769521889787,0.5600115,87969.0,87957.0,0.02263078]
[1769521890194,0.55948557,87969.0,87957.0,0.02263078]
[1769521897013,0.55948557,87969.0,87947.0,0.01137048]
[1769521897215,0.27189457,87960.0,87947.0,0.02263078]
[1769521897432,0.84169627,87960.0,87947.0,0.02263078]
[1769521897650,0.5698017,87959.0,87942.0,0.02263078]
[1769521898392,0.05683464,87954.0,87942.0,0.02263078]
[1769521898627,0.02290542,87952.0,87932.0,0.02263078]
[1769521898851,0.59270712,87951.0,87936.0,0.00046188]
[1769521899029,0.59270712,87951.0,87938.0,0.01137164]
[1769521899227,0.59270712,87951.0,87936.0,0.01339772]
[1769521899580,0.05683464,87954.0,87941.0,0.01137126]
[1769521899842,0.05683464,87954.0,87942.0,0.00156383]
[1769521900093,0.5698017,87973.0,87947.0,0.01137048]
[1769521900297,0.05686106,87963.0,87950.0,0.56523051]
[1769521900502,0.05686106,87963.0,87951.0,0.02419445]
[1769521903728,0.05686106,87963.0,87951.0,0.02263078]
[1769521904363,0.05686106,87963.0,87952.0,0.00137459]
[1769521904576,0.05686106,87963.0,87951.0,0.02263078]
[1769521905198,0.05686106,87963.0,87951.0,0.02230869]
[1769521905635,0.5698017,87962.0,87944.0,0.56523051]
[1769521905832,0.5698017,87962.0,87944.0,0.57660138]
[1769521906037,0.27189457,87960.0,87944.0,0.56523051]
[1769521906248,0.84169627,87960.0,87944.0,0.56523051]
[1769521907006,0.5698017,87960.0,87944.0,0.56523051]
[1769521910648,0.00853349,87959.0,87944.0,0.56523051]
[1769521914441,0.07976648,87963.0,87940.0,0.28326595]
[1769521914442,0.05686106,87963.0,87940.0,0.37189457]
[1769521914646,0.05686106,87963.0,87949.0,0.64657767]
[1769521914852,0.05686106,87963.0,87949.0,0.5897266]
[1769521915417,0.05686106,87963.0,87949.0,0.57835638]
[1769521916024,0.05686106,87963.0,87949.0,0.5897266]
[1769521916232,0.05686106,87963.0,87949.0,0.57835638]
[1769521916998,0.05686106,87963.0,87950.0,0.01137009]
[1769521917326,0.05686106,87963.0,87949.0,0.64657763]
[1769521917529,0.05686106,87963.0,87950.0,0.01162887]
[1769521917973,0.05686106,87963.0,87950.0,0.00025878]
[1769521918176,0.05686106,87963.0,87950.0,0.01162887]
[1769521918381,0.05686106,87963.0,87950.0,0.05710913]
[1769521918585,0.05686106,87963.0,87950.0,0.00025878]
[1769521918764,0.05686106,87963.0,87951.0,0.56529425]
[1769521918965,0.05686106,87963.0,87952.0,0.00025877]
[1769521920439,0.05686106,87963.0,87953.0,0.00062665]
[1769521921242,0.09042111,87976.0,87953.0,0.00062665]
[1769521921243,0.02497284,87980.0,87963.0,0.00046722]
[1769521921628,0.11361052,87979.0,87963.0,0.00046722]
[1769521921802,0.05683788,87970.0,87961.0,0.55392429]
[1769521922665,0.05683788,87970.0,87956.0,0.01136932]
[1769521923077,0.05683788,87970.0,87957.0,0.01136919]
[1769521923283,0.05683788,87970.0,87956.0,0.06821586]
[1769521923485,0.05683788,87970.0,87956.0,0.55392429]
[1769521923719,0.32878556,87970.0,87955.0,0.02443209]
[1769521923869,0.90128959,87970.0,87954.0,0.01136957]
[1769521924323,0.90128959,87970.0,87951.0,0.02426709]
[1769521924526,0.90128959,87970.0,87953.0,0.0113697]
[1769521924925,0.90128959,87970.0,87954.0,0.05684743]
[1769521925113,0.62939502,87970.0,87954.0,0.068217]
[1769521925310,0.62939502,87970.0,87954.0,0.01136957]
[1769521925512,0.62939502,87970.0,87955.0,0.01136945]
[1769521926352,0.08186383,87970.0,87956.0,0.01136932]
[1769521926497,0.08186383,87970.0,87955.0,0.62214084]
[1769521926699,0.00032189,87969.0,87955.0,0.56529374]
[1769521927407,0.00032189,87969.0,87956.0,0.01136932]
[1769521927632,0.00032189,87969.0,87955.0,0.62214071]
[1769521928692,0.00032189,87969.0,87956.0,0.01136932]
[1769521929639,0.00032189,87969.0,87957.0,0.01136919]
[1769521929846,0.00032189,87969.0,87955.0,0.56529374]
[1769521930481,0.00032189,87969.0,87956.0,0.01136932]
[1769521932455,0.00032189,87969.0,87957.0,0.00947]
[1769521932657,0.00032189,87969.0,87956.0,0.02083932]
[1769521933267,0.00032189,87969.0,87956.0,0.56529361]
[1769521933625,0.00032189,87969.0,87956.0,0.55392429]
[1769521934006,0.27197016,87980.0,87956.0,0.55392429]
[1769521934205,0.05683756,87970.0,87956.0,0.5539774]
[1769521937321,0.05683756,87970.0,87957.0,0.02230653]
[1769521945362,0.05683756,87970.0,87957.0,0.03367572]
[1769521945595,0.05683756,87970.0,87959.0,0.02399986]
[1769521945783,0.05683756,87970.0,87960.0,0.0223985]
[1769521946006,0.02292949,87979.0,87960.0,0.29396284]
[1769521946225,0.11365148,87978.0,87962.0,0.02399986]
[1769521946440,0.11365148,87977.0,87963.0,0.00802182]
[1769521946677,8.4e-05,87980.0,87963.0,0.02399986]
[1769521946876,0.05683539,87973.0,87966.0,0.02399986]
[1769521947048,0.05683539,87973.0,87967.0,0.00810996]
[1769521947821,0.05683539,87973.0,87966.0,0.02399986]
[1769521948712,0.05636817,87973.0,87966.0,0.02399986]
[1769521949349,0.05636817,87973.0,87967.0,0.00929774]
[1769521949911,0.05636817,87973.0,87966.0,0.02399986]
[1769521950549,0.00032182,87972.0,87961.0,0.00929774]
[1769521950781,0.00032182,87972.0,87961.0,0.02399986]
[1769521951628,0.27188616,87971.0,87956.0,5.311e-05]
[1769521951833,0.57814836,87970.0,87956.0,5.311e-05]
[1769521952209,0.57782654,87970.0,87956.0,5.311e-05]
[1769521952340,0.00032182,87969.0,87956.0,5.311e-05]
[1769521954042,0.57782654,87970.0,87956.0,5.311e-05]
[1769521954245,0.05636817,87973.0,87957.0,0.02399986]
[1769521954490,0.05636817,87973.0,87958.0,0.03338778]
[1769521954663,0.05636817,87973.0,87958.0,0.04475684]
[1769521955275,0.05636817,87973.0,87961.0,0.01136867]
[1769521955429,0.05636817,87973.0,87962.0,0.00938749]
[1769521956075,0.00032182,87972.0,87962.0,0.00938749]
[1769521956313,0.46937936,87977.0,87962.0,0.00938749]
[1769521956830,0.05683912,87967.0,87962.0,0.00938749]
[1769521957823,0.05683912,87967.0,87963.0,0.00941712]
[1769521957984,0.05683912,87967.0,87964.0,0.00942126]
[1769521958191,0.05683912,87967.0,87960.0,0.03342112]
[1769521959047,0.46937936,87977.0,87960.0,0.03342112]
[1769521959249,0.05683617,87973.0,87961.0,0.02399986]
[1769521959459,0.05683617,87973.0,87962.0,0.00944272]
[1769521966793,0.63466271,87973.0,87956.0,5.311e-05]
[1769521967148,0.57782654,87971.0,87956.0,5.311e-05]
[1769521967974,0.60075603,87971.0,87956.0,5.311e-05]
[1769521969045,0.57782654,87971.0,87956.0,0.02405297]
[1769521970407,0.57782654,87971.0,87956.0,0.53326537]
[1769521970617,0.57782654,87971.0,87957.0,0.02399986]
[1769521970860,0.05683617,87973.0,87958.0,0.02399986]
[1769521971066,0.11374632,87972.0,87958.0,0.02399986]
[1769521971360,0.05683617,87973.0,87958.0,0.02399986]
[1769521971568,0.11374581,87972.0,87958.0,0.02399986]
[1769521971792,0.05683617,87973.0,87958.0,0.02399986]
[1769521971908,0.11374581,87972.0,87958.0,0.02399986]
[1769521972113,0.05683617,87973.0,87958.0,0.02399986]
[1769521972319,0.11374581,87972.0,87958.0,0.02399986]
[1769521972515,0.05683617,87973.0,87958.0,0.02399986]
[1769521972755,0.1137454,87972.0,87958.0,0.02399986]
[1769521972955,0.05683617,87973.0,87958.0,0.02399986]
[1769521973166,0.1137454,87972.0,87958.0,0.02399986]
[1769521973355,0.05683617,87973.0,87958.0,0.02399986]
[1769521973566,0.1137449,87972.0,87958.0,0.02399986]
[1769521973739,0.05683617,87973.0,87958.0,0.02399986]
[1769521973953,0.1137449,87972.0,87958.0,0.02399986]
[1769521974153,0.05683617,87973.0,87958.0,0.02399986]
[1769521974508,0.11374522,87972.0,87958.0,0.02399986]
[1769521974664,0.05683617,87973.0,87959.0,0.02186649]
[1769521974872,0.11374485,87972.0,87959.0,0.02186649]
[1769521975066,0.05683617,87973.0,87959.0,0.02186649]
[1769521975294,0.1137448,87972.0,87959.0,0.02186649]
[1769521975469,0.05683617,87973.0,87959.0,0.02186649]
[1769521975687,0.11374445,87972.0,87959.0,0.03323542]
[1769521975898,0.05683617,87973.0,87959.0,0.02186649]
[1769521976087,0.11374445,87972.0,87960.0,0.27188616]
[1769521976293,0.05683617,87973.0,87961.0,0.02186599]
[1769521976633,0.113744,87972.0,87961.0,0.02186599]
[1769521976830,0.05683617,87973.0,87961.0,0.02186599]
[1769521977060,0.11374385,87972.0,87961.0,0.02186599]
[1769521977268,0.05683617,87973.0,87961.0,0.02186599]
[1769521977564,0.11374668,87972.0,87961.0,0.02186599]
[1769521977769,0.05683617,87973.0,87961.0,0.02186599]
[1769521977909,0.11374668,87972.0,87961.0,0.02186599]
[1769521978113,0.05683617,87973.0,87961.0,0.02186599]
[1769521978316,0.11374672,87972.0,87961.0,0.02186599]
[1769521978521,0.05683617,87973.0,87961.0,0.02186599]
[1769521978744,0.11375028,87972.0,87961.0,0.02186599]
[1769521978966,0.05683617,87973.0,87961.0,0.02186599]
[1769521979167,0.11375029,87972.0,87961.0,0.02186599]
[1769521979479,0.05683617,87973.0,87961.0,0.02186599]
[1769521979622,0.11375525,87972.0,87961.0,0.02186599]
[1769521979820,0.05683617,87973.0,87961.0,0.02186599]
[1769521980025,0.11375525,87972.0,87961.0,0.02186599]
[1769521980412,0.05683617,87973.0,87961.0,0.02186599]
[1769521980610,0.05683617,87973.0,87962.0,0.01136854]
[1769521980787,0.05683617,87973.0,87964.0,0.01136828]
[1769521980943,8.4e-05,87980.0,87964.0,0.01136828]
[1769521980944,8.4e-05,87980.0,87970.0,0.27188616]
[1769521981148,8.4e-05,87980.0,87969.0,0.02407772]
[1769521981353,0.05683151,87979.0,87969.0,0.02407772]
[1769521981559,0.05683151,87979.0,87970.0,0.5832413]
[1769521981756,8.4e-05,87980.0,87972.0,0.02407772]
[1769521981985,0.1168,87992.0,87976.0,0.02407772]
[1769521982188,0.0568274,87986.0,87979.0,0.00589]
[1769521983169,0.58878407,87997.0,87980.0,0.02407772]
[1769521983373,0.0568246,87990.0,87980.0,0.02407772]
[1769521983582,0.0568246,87990.0,87982.0,0.01136596]
[1769521983859,0.0568246,87990.0,87984.0,0.02407772]
[1769521985051,0.0569043,87990.0,87984.0,0.02407772]
[1769521986011,0.0001896,88002.0,87986.0,0.01136544]
[1769521986212,0.05682022,87997.0,87986.0,0.09227011]
[1769521986354,0.05682022,87997.0,87987.0,0.01136531]
[1769521986946,0.05682022,87997.0,87987.0,0.27188616]
[1769521987162,0.05682022,87997.0,87988.0,0.01136518]
[1769521987772,0.05682022,87997.0,87988.0,0.06819105]
[1769521988015,0.05682022,87997.0,87988.0,0.01136518]
[1769521988218,0.05682022,87997.0,87990.0,0.5832413]
[1769521989281,0.05682022,87997.0,87986.0,0.03544316]
[1769521989493,0.05682022,87997.0,87987.0,0.01136531]
[1769521989694,0.05682022,87997.0,87986.0,0.03544316]
[1769521990026,0.05682022,87997.0,87986.0,0.09227029]
[1769521990259,0.05682022,87997.0,87986.0,0.03544316]
[1769521990434,0.05682022,87997.0,87987.0,0.01136531]
[1769521990635,0.05682022,87997.0,87988.0,0.01136518]
[1769521990842,0.05682022,87997.0,87989.0,0.01136505]
[1769521991074,0.05682022,87997.0,87988.0,0.01136518]
[1769521991408,0.05682022,87997.0,87988.0,0.06819106]
[1769521991754,0.05682022,87997.0,87990.0,0.01136492]
[1769521992241,0.0048955,87997.0,87990.0,0.01136492]
[1769521992455,0.0048955,87997.0,87987.0,0.28303794]
[1769521992682,0.0048955,87997.0,87988.0,0.65143222]
[1769521992888,0.0048955,87997.0,87989.0,0.0681901]
[1769521993097,0.0048955,87997.0,87989.0,0.01136505]
[1769521993764,0.0001902,88007.0,87991.0,0.59460609]
[1769521994020,0.05681479,88005.0,87993.0,0.60731902]
[1769521994246,0.05681479,88005.0,87993.0,0.61868356]
[1769521994467,0.05681479,88005.0,87993.0,0.60731902]
[1769521994677,0.05681479,88005.0,87993.0,0.61868356]
[1769521994883,0.05681479,88005.0,87995.0,0.01136428]
[1769521995042,0.05681479,88005.0,87994.0,0.06818633]
[1769521995370,0.05681479,88005.0,87995.0,0.01136428]
[1769521995804,0.05681479,88005.0,87999.0,0.5832413]
[1769521996034,0.05681479,88005.0,87997.0,0.02407772]
[1769521997396,0.05681479,88005.0,87994.0,0.5832413]
[1769521997607,0.05681479,88005.0,87991.0,0.02407772]
[1769521998803,0.05681479,88005.0,87991.0,0.60731902]
[1769521999840,0.05681479,88005.0,87991.0,0.5832413]
[1769522000796,0.02268019,88016.0,87999.0,0.85491393]
[1769522001108,0.05680911,88014.0,87999.0,0.85491393]
[1769522001310,0.02253029,88012.0,87999.0,0.27167263]
[1769522001517,0.02253029,88012.0,87991.0,0.01136479]
[1769522001518,0.02253029,88008.0,87990.0,0.01136492]
[1769522001737,0.58878407,88005.0,87991.0,0.00910707]
[1769522001938,0.02401302,88004.0,87991.0,0.00910707]
[1769522002168,0.02401302,88004.0,87991.0,0.02047186]
[1769522002345,0.02401302,88004.0,87991.0,0.00910707]
[1769522003659,0.02401302,88004.0,87991.0,0.02047186]
[1769522004053,0.02401302,88004.0,87991.0,0.00910707]
[1769522004403,0.02401302,88004.0,87991.0,0.02047186]
[1769522005322,0.02401302,88004.0,87991.0,0.00910707]
[1769522005481,0.02401302,88004.0,87991.0,0.02047186]
[1769522005890,0.02401302,88004.0,87991.0,0.06818854]
[1769522006103,0.02401302,88004.0,87993.0,0.01136454]
[1769522006293,0.02401302,88004.0,87993.0,0.06818719]
[1769522006672,0.02401302,88004.0,87994.0,0.01136441]
[1769522007335,0.02401302,88004.0,87995.0,0.06818568]
[1769522007509,0.02401302,88004.0,87996.0,0.03109871]
[1769522007731,0.02401302,88004.0,87997.0,0.01136402]
[1769522007933,0.02370049,88011.0,87998.0,0.031098]
[1769522008281,0.02378551,88011.0,87998.0,0.01973411]
[1769522008454,0.02378551,88011.0,87998.0,0.031098]
[1769522008763,0.02378551,88011.0,87998.0,0.01973411]
[1769522008944,0.02378551,88011.0,87995.0,0.01136428]
[1769522009140,0.02378551,88011.0,87996.0,0.01973497]
[1769522009341,0.02378551,88011.0,87994.0,0.01136441]
[1769522009342,0.02378551,88011.0,87995.0,0.01973498]
[1769522009512,0.02378551,88011.0,87995.0,0.03109926]
[1769522009968,0.02378551,88011.0,87995.0,0.08792066]
[1769522010362,0.02378551,88011.0,87996.0,0.01136415]
[1769522010563,0.02378551,88011.0,87997.0,0.03109855]
[1769522012019,0.02378551,88011.0,87997.0,0.01973453]
[1769522012227,0.02378551,88011.0,87998.0,0.01973442]
[1769522012448,0.02370049,88009.0,87998.0,0.01973442]
[1769522012602,0.02370049,88009.0,87999.0,0.01973438]
[1769522012803,0.02370049,88009.0,88000.0,0.01973415]
[1769522013003,0.02370049,88009.0,88001.0,0.01973392]
[1769522013876,0.02370049,88009.0,87995.0,0.01136428]
[1769522014078,0.59389194,88008.0,87994.0,0.06818621]
[1769522014285,0.59389194,88008.0,87990.0,0.49897103]
[1769522014286,0.57019145,88008.0,87960.0,0.39895263]
[1769522014491,0.57019145,88000.0,87984.0,0.0115156]
[1769522014701,0.02370049,87997.0,87984.0,0.0001499]
[1769522014883,0.57019145,87994.0,87984.0,0.0001499]
[1769522015111,0.02370049,87991.0,87984.0,0.0001499]
[1769522015959,0.57019145,87991.0,87984.0,0.0001499]
[1769522016342,0.59389194,87990.0,87984.0,0.0001499]
[1769522018789,0.40352582,87990.0,87984.0,0.0001499]
[1769522019342,0.02370049,87995.0,87985.0,0.01136557]
[1769522019569,0.02370049,87995.0,87984.0,0.0115156]
[1769522019883,0.59389194,87995.0,87985.0,0.01136557]
[1769522020226,0.59389194,87995.0,87986.0,0.01136544]
[1769522020883,0.05680911,88001.0,87988.0,0.01136518]
[1769522021105,0.65070105,88001.0,87992.0,0.01136466]
[1769522021328,0.05680911,88001.0,87984.0,0.0001499]
[1769522021562,0.11676,88008.0,88001.0,0.0113635]
[1769522022009,0.11676,88008.0,87998.0,0.01136389]
[1769522022217,0.11676,88008.0,87997.0,0.0437691]
[1769522023740,0.11676,88008.0,87998.0,0.0197757]
[1769522024155,0.11676,88008.0,87997.0,0.05422719]
[1769522024359,0.11676,88008.0,87998.0,0.01136389]
[1769522025876,0.11676,88008.0,87997.0,0.11104711]
[1769522026042,0.11659899,88008.0,87998.0,0.01136389]
[1769522027275,0.11611582,88008.0,87998.0,0.01136389]
[1769522027492,0.11611582,88008.0,88000.0,0.01136363]
[1769522027919,0.05682096,88009.0,87998.0,0.01136389]
[1769522028130,0.05682096,88009.0,87999.0,0.01136376]
[1769522028746,0.05682096,88009.0,87999.0,0.06818238]
[1769522028959,0.05682096,88009.0,88000.0,0.01136363]
[1769522029162,0.05682096,88009.0,87997.0,0.02308746]
[1769522029163,0.05665988,88009.0,87997.0,0.02308746]
[1769522029366,0.05665988,88009.0,87998.0,0.05681935]
[1769522029573,0.05665988,88009.0,87998.0,0.01136389]
[1769522030418,0.05665988,88009.0,87999.0,0.01136376]
[1769522030623,0.05665988,88009.0,87998.0,0.01136389]
[1769522030826,0.05665988,88009.0,87997.0,0.02308746]
[1769522031058,0.05665988,88009.0,87997.0,0.03445148]
[1769522031290,0.05665988,88009.0,87998.0,0.01136389]
[1769522031466,0.05665988,88009.0,87997.0,0.02308746]
[1769522031688,0.05665988,88009.0,87997.0,0.09127146]
[1769522031885,0.05665988,88009.0,87997.0,0.03445148]
[1769522032065,0.05665988,88009.0,87997.0,0.09127153]
[1769522032269,0.05665988,88009.0,87997.0,0.03445148]
[1769522032841,0.05665988,88009.0,88000.0,0.06818145]
[1769522033051,0.05665988,88009.0,87999.0,0.01136376]
[1769522033233,0.05665988,88009.0,87999.0,0.06818232]
[1769522033435,0.05665988,88009.0,88000.0,0.01136363]
[1769522033639,0.01336402,88009.0,88001.0,0.0113635]
[1769522033860,0.01336402,88009.0,88007.0,0.05681308]
[1769522034269,0.01336402,88009.0,88006.0,0.01136286]
[1769522034445,0.01336402,88009.0,88006.0,0.06817661]
[1769522034646,0.01336402,88009.0,88006.0,0.01136286]
[1769522035103,0.01336402,88009.0,88006.0,0.06817705]
[1769522035315,0.01336402,88009.0,88006.0,0.01136286]
[1769522035943,0.01336402,88009.0,88006.0,0.06817712]
[1769522036367,0.01336402,88009.0,88006.0,0.01136286]
[1769522036614,0.01336402,88009.0,88005.0,0.01136299]
[1769522037158,0.01336402,88009.0,88005.0,0.06817788]
[1769522037500,0.01336402,88009.0,88006.0,0.01136286]
[1769522037996,0.08219494,88045.0,88008.0,0.0113626]
[1769522038220,0.02371849,88028.0,88010.0,0.05681121]
[1769522038428,0.05680357,88022.0,88010.0,0.01136234]
[1769522038662,0.02371849,88020.0,88010.0,0.01136234]
[1769522038868,0.58200737,88020.0,88010.0,0.06817396]
[1769522039071,0.58200737,88020.0,88009.0,0.07066431]
[1769522039280,0.58200737,88020.0,88009.0,0.01385247]
[1769522039487,0.58200737,88020.0,88009.0,0.00249]
[1769522039669,0.55828888,88019.0,88009.0,0.00249]
[1769522039818,0.58200737,88019.0,88009.0,0.00249]
[1769522040224,0.58200737,88019.0,88009.0,0.01385247]
[1769522040446,0.58200737,88019.0,88009.0,0.00249]
[1769522040643,0.58200737,88019.0,88007.0,0.01136273]
[1769522040644,0.02371849,88018.0,88002.0,0.01136337]
[1769522040865,0.02371849,88014.0,87998.0,0.01151689]
[1769522041043,0.02371849,88012.0,87999.0,0.01136376]
[1769522041242,0.02371849,88010.0,87999.0,0.01136376]
[1769522041650,0.55828888,88010.0,87999.0,0.01136376]
[1769522041859,0.02371849,88009.0,88000.0,0.01136363]
[1769522042062,0.02371849,88009.0,88003.0,0.01136324]
[1769522042264,0.55828888,88021.0,88003.0,0.01136324]
[1769522042472,0.02371849,88020.0,88003.0,0.01136324]
[1769522042788,0.02371849,88019.0,88003.0,0.01136324]
[1769522043005,0.02371849,88016.0,88006.0,0.01136286]
[1769522043203,0.05680357,88022.0,88007.0,0.01136273]
[1769522043393,0.05680357,88022.0,88006.0,0.06817692]
[1769522043394,0.05680357,88022.0,88006.0,0.64736525]
[1769522043593,0.05680357,88022.0,88006.0,0.57918833]
[1769522043821,0.02371849,88021.0,88006.0,0.57918833]
[1769522043995,0.02371849,88021.0,88006.0,0.59055119]
[1769522044808,0.02371849,88021.0,88006.0,0.57918833]
[1769522045112,0.02371849,88021.0,88006.0,0.59055119]
[1769522045972,0.02371849,88021.0,88006.0,0.57918833]
[1769522046416,0.02371849,88021.0,88007.0,0.01136273]
[1769522046621,0.02371849,88021.0,88010.0,0.01136234]
[1769522046829,0.02371849,88021.0,88010.0,0.06817386]
[1769522047033,0.02371849,88021.0,88011.0,0.01136221]
[1769522047372,0.02371849,88021.0,88010.0,0.01136234]
[1769522047651,0.02371849,88021.0,88009.0,0.0681748]
[1769522047829,0.02371849,88021.0,88010.0,0.01136234]
[1769522049756,0.02371849,88021.0,88009.0,0.06817429]
[1769522050187,0.02371849,88021.0,88009.0,0.05681224]
[1769522050399,0.02371849,88021.0,88010.0,0.0568117]
[1769522050963,0.02371849,88021.0,88009.0,0.06817471]
[1769522051280,0.02371849,88021.0,88010.0,0.01136234]
[1769522051843,0.02371849,88021.0,88009.0,0.06817461]
[1769522051993,0.02371849,88021.0,88009.0,0.01136247]
[1769522052157,0.02371849,88021.0,88008.0,0.0113626]
[1769522052366,0.02371849,88021.0,88009.0,0.06817471]
[1769522052565,0.02371849,88021.0,88010.0,0.01136234]
[1769522052822,0.02371849,88021.0,88009.0,0.01136247]
[1769522053027,0.02371849,88021.0,88010.0,0.01136234]
[1769522053746,0.02371849,88021.0,88011.0,0.01136221]
[1769522054065,0.02371849,88021.0,88010.0,0.28293343]
[1769522054209,0.02371849,88021.0,88012.0,0.01136208]
[1769522055095,0.02371849,88021.0,88013.0,0.01136195]
[1769522055408,0.02371849,88021.0,88016.0,0.01136157]
[1769522055612,0.02371849,88021.0,88012.0,0.2272412]
[1769522055613,0.05680357,88022.0,88011.0,0.57918833]
[1769522055784,0.05680357,88022.0,88012.0,0.01136208]
[1769522056132,0.05680357,88022.0,88012.0,0.06817245]
[1769522056392,0.05680357,88022.0,88013.0,0.01136195]
[1769522056824,0.05680357,88022.0,88014.0,0.01136182]
[1769522057183,0.05680357,88022.0,88013.0,0.01136195]
[1769522057389,0.05680357,88022.0,88013.0,0.06817171]
[1769522057608,0.05680357,88022.0,88014.0,0.01136182]
[1769522057933,0.05680357,88022.0,88013.0,0.06817171]
[1769522058223,0.05680357,88022.0,88014.0,0.01136182]
[1769522059554,0.11672,88029.0,88017.0,0.57918833]
[1769522059756,0.05680502,88021.0,88017.0,0.59054977]
[1769522061563,0.05680502,88021.0,88017.0,0.64735663]
[1769522061745,0.05680502,88021.0,88017.0,0.59054977]
[1769522062842,0.05680502,88021.0,88017.0,0.57918833]
[1769522063057,0.05680502,88021.0,88006.0,0.01136286]
[1769522063217,0.54009523,88020.0,88010.0,0.01136234]
[1769522063421,0.02890229,88019.0,88010.0,0.01136234]
[1769522063620,0.02890229,88018.0,88010.0,0.06817395]
[1769522063816,0.02890229,88018.0,88010.0,0.06817398]
[1769522064021,0.02890229,88018.0,88006.0,0.23862006]
[1769522064022,0.02890229,88016.0,88008.0,0.0113626]
[1769522064333,0.02890229,88014.0,88007.0,0.01136273]
[1769522064574,0.02890229,88014.0,88006.0,0.06817684]
[1769522064775,0.02568114,88014.0,88006.0,0.06817684]
[1769522064992,0.02278125,88014.0,88006.0,0.06817684]
[1769522065119,0.02245899,88014.0,88007.0,0.06817628]
[1769522065323,0.02245899,88014.0,88007.0,0.01136273]
[1769522065945,0.02245899,88014.0,88006.0,0.06817684]
[1769522066150,0.02245899,88014.0,88007.0,0.01136273]
[1769522066590,0.02245899,88014.0,88007.0,0.06817593]
[1769522066741,0.02245899,88014.0,88008.0,0.0113626]
[1769522066938,0.02245899,88014.0,88006.0,0.01136286]
[1769522067215,0.02245899,88014.0,88007.0,0.01136273]
[1769522068008,0.02052522,88014.0,88009.0,0.01136247]
[1769522068388,0.02052522,88014.0,88010.0,0.02840633]
[1769522068389,0.01633415,88014.0,88010.0,0.02840633]
[1769522068559,0.01278654,88014.0,88010.0,0.08521802]
[1769522068732,0.01278654,88014.0,88010.0,0.02840633]
[1769522068733,0.00956039,88014.0,88010.0,0.02840633]
[1769522068937,0.05680502,88021.0,88013.0,0.01136195]
[1769522069161,0.05680502,88021.0,88014.0,0.01136182]
[1769522069362,0.05680502,88021.0,88015.0,0.02524601]
[1769522069595,0.05680502,88021.0,88015.0,0.01388432]
[1769522070463,0.05680502,88021.0,88016.0,0.00117231]
[1769522070663,0.07955939,88021.0,88016.0,0.00117231]
[1769522070865,0.48999817,88029.0,88016.0,0.00117231]
[1769522071050,0.02275437,88027.0,88017.0,0.01704399]
[1769522071252,0.0004,88039.0,88021.0,0.01136092]
[1769522071451,0.05680034,88027.0,88023.0,0.01136066]
[1769522071657,0.05680034,88027.0,88022.0,0.33973555]
[1769522071658,0.05680034,88027.0,88018.0,0.5626315]
[1769522071865,0.05680034,88027.0,88018.0,0.61943774]
[1769522072076,0.05680034,88027.0,88019.0,0.01136118]
[1769522072254,0.05680034,88027.0,88020.0,0.01136105]
[1769522072659,0.05680034,88027.0,88020.0,0.06816624]
[1769522072907,0.05680034,88027.0,88021.0,0.01136092]
[1769522073079,0.05680034,88027.0,88020.0,0.01136105]
[1769522073461,0.05680034,88027.0,88021.0,0.01136092]
[1769522075092,0.05680034,88027.0,88020.0,0.06816602]
[1769522075283,0.05680034,88027.0,88021.0,0.01136092]
[1769522075735,0.05680034,88027.0,88020.0,0.06816602]
[1769522075935,0.05680034,88027.0,88021.0,0.01136092]
[1769522076480,0.05680034,88027.0,88020.0,0.06816602]
[1769522076686,0.05680034,88027.0,88021.0,0.01136092]
[1769522076903,0.05680034,88027.0,88017.0,0.28293253]
[1769522077079,0.05680034,88027.0,88019.0,0.01136118]
[1769522077377,0.05680034,88027.0,88019.0,0.001135]
[1769522077577,0.05680034,88027.0,88019.0,0.06930199]
[1769522077802,0.05680034,88027.0,88020.0,0.01136105]
[1769522078107,0.05680034,88027.0,88019.0,0.06930199]
[1769522078473,0.05680034,88027.0,88019.0,0.01249618]
[1769522078673,0.05680034,88027.0,88019.0,0.001135]
[1769522083057,0.05680034,88027.0,88016.0,0.02369071]
[1769522083233,0.05680034,88027.0,88012.0,0.60808045]
[1769522083234,0.05680034,88027.0,88012.0,0.56263227]
[1769522083855,0.05680034,88027.0,88013.0,0.01136195]
[1769522084077,0.05680034,88027.0,88014.0,0.01136182]
[1769522084278,0.05680034,88027.0,88013.0,0.01136195]
[1769522084899,0.05680034,88027.0,88013.0,0.06817149]
[1769522085102,0.05680034,88027.0,88012.0,0.61944234]
[1769522085324,0.05680034,88027.0,88014.0,0.01136182]
[1769522086316,0.05680034,88027.0,88013.0,0.01136195]
[1769522087670,0.05680034,88027.0,88014.0,0.06817078]
[1769522087878,0.05680034,88027.0,88013.0,0.06817163]
[1769522088090,0.05680034,88027.0,88014.0,0.01136182]
[1769522088295,0.05680034,88027.0,88015.0,0.06816973]
[1769522088520,0.05680034,88027.0,88016.0,0.01136157]
[1769522088687,0.05680034,88027.0,88014.0,0.01136182]
[1769522088894,0.05680034,88027.0,88014.0,0.06817093]
[1769522089413,0.05680034,88027.0,88015.0,0.01136169]
[1769522089792,0.05680034,88027.0,88014.0,0.06817093]
[1769522090129,0.05680034,88027.0,88014.0,0.01136182]
[1769522090509,0.05680034,88027.0,88013.0,0.03505266]
[1769522091433,0.05680034,88027.0,88010.0,0.27157109]
[1769522091638,0.59831204,88026.0,88010.0,0.27157109]
[1769522094125,0.59831204,88026.0,88014.0,0.01136182]
[1769522094502,0.59831204,88026.0,88015.0,0.01136169]
[1769522094718,0.59831204,88026.0,88015.0,0.06816981]
[1769522094929,0.59831204,88026.0,88019.0,0.01136118]
[1769522095105,0.57555767,88026.0,88017.0,0.01136144]
[1769522095253,0.57555767,88026.0,88014.0,0.05680887]
[1769522095453,0.57555767,88026.0,88016.0,0.06816904]
[1769522095729,0.57555767,88026.0,88015.0,0.06816981]
[1769522096318,0.57555767,88026.0,88016.0,0.01136157]
[1769522096736,0.57555767,88026.0,88017.0,0.01136144]
[1769522096943,0.57555767,88026.0,88018.0,0.05680655]
[1769522097152,0.57555767,88026.0,88017.0,0.01136144]
[1769522097367,0.57555767,88026.0,88016.0,0.28293266]
[1769522097582,0.57555767,88026.0,88018.0,0.06816774]
[1769522097794,0.57555767,88026.0,88018.0,0.01136131]
[1769522098046,0.57555767,88026.0,88017.0,0.01136144]
[1769522098444,0.57555767,88026.0,88016.0,0.27157109]
[1769522099065,0.57555767,88026.0,88016.0,0.01136157]
[1769522099863,0.57555767,88026.0,88014.0,0.01136182]
[1769522100048,0.57555767,88026.0,88015.0,0.06816994]
[1769522100247,0.57555767,88026.0,88016.0,0.01136157]
[1769522100472,0.57555767,88026.0,88015.0,0.01136169]